bitfinex-derivatives/quotes_BTCF0:USTF0_20241223
["timestamp","ask_amount","ask_price","bid_price","bid_amount"]
[1734960871855,0.052431,95473.0,95471.0,0.1675]
[1734960872246,0.3608,95474.0,95462.0,0.052436]
[1734960872450,0.3608,95474.0,95461.0,0.00157132]
[1734960872451,0.052435,95466.0,95461.0,0.00157132]
[1734960873147,0.12649224,95471.0,95461.0,0.00157132]
[1734960873350,0.12649224,95471.0,95430.0,0.12649224]
[1734960873351,0.3608,95464.0,95443.0,0.3608]
[1734960873553,0.052446,95445.0,95443.0,0.3608]
[1734960873756,0.052444,95449.0,95443.0,0.3608]
[1734960873944,0.052445,95448.0,95443.0,0.3608]
[1734960874555,0.052446,95446.0,95443.0,0.3608]
[1734960874958,0.052447,95444.0,95443.0,0.3608]
[1734960875555,0.052442,95453.0,95443.0,0.3608]
[1734960875753,0.008,95448.0,95443.0,0.3608]
[1734960875956,0.008,95448.0,95447.0,0.052445]
[1734960876351,0.00956035,95450.0,95449.0,0.052444]
[1734960876654,0.052437,95462.0,95456.0,0.052439]
[1734960876851,0.052439,95458.0,95449.0,1.50056]
[1734960877052,0.052439,95458.0,95455.0,0.052441]
[1734960877248,0.3608,95475.0,95449.0,1.5]
[1734960877449,0.37067544,95464.0,95449.0,1.5]
[1734960877663,0.052438,95461.0,95449.0,1.5]
[1734960877850,0.37067544,95464.0,95461.0,0.052437]
[1734960878050,0.37155545,95464.0,95463.0,0.052436]
[1734960878358,0.3608,95464.0,95463.0,0.052436]
[1734960878554,0.3678,95464.0,95463.0,0.052436]
[1734960878774,0.3678,95464.0,95463.0,1.5]
[1734960879060,0.3608,95464.0,95463.0,1.5]
[1734960879265,0.052435,95465.0,95463.0,1.5]
[1734960879754,0.052435,95465.0,95459.0,0.052438]
[1734960879956,0.052435,95465.0,95455.0,0.05244]
[1734960880155,0.00996742,95467.0,95440.0,0.12649224]
[1734960880356,0.3608,95475.0,95440.0,0.12649224]
[1734960880566,0.052438,95459.0,95453.0,0.052441]
[1734960881958,0.053438,95459.0,95457.0,0.052439]
[1734960882161,0.05244,95456.0,95452.0,0.3608]
[1734960883251,0.001,95459.0,95458.0,0.052439]
[1734960884558,0.001,95456.0,95453.0,0.157733]
[1734960884856,0.001,95456.0,95454.0,0.052441]
[1734960885058,0.052434,95468.0,95453.0,0.157733]
[1734960885257,0.001,95459.0,95452.0,0.3608]
[1734960885455,0.001,95459.0,95457.0,0.052439]
[1734960885656,0.001,95459.0,95458.0,0.1741]
[1734960885861,0.3608,95474.0,95458.0,0.1741]
[1734960886065,0.052435,95466.0,95465.0,0.052435]
[1734960886264,0.052436,95464.0,95459.0,0.052438]
[1734960886458,0.052436,95464.0,95460.0,0.052437]
[1734960887363,0.052436,95464.0,95458.0,0.1741]
[1734960887565,0.052436,95464.0,95462.0,0.052437]
[1734960888156,0.15355108,95468.0,95458.0,0.1741]
[1734960888358,0.15355108,95468.0,95452.0,0.3608]
[1734960888359,0.05244,95456.0,95452.0,0.3608]
[1734960888665,0.05244,95456.0,95453.0,0.052441]
[1734960888866,0.3608,95466.0,95452.0,0.3608]
[1734960889062,0.15355108,95465.0,95456.0,0.05244]
[1734960889360,0.15355108,95465.0,95452.0,0.3608]
[1734960889361,0.052437,95462.0,95452.0,0.3608]
[1734960889565,0.052437,95462.0,95452.0,0.34024]
[1734960890663,0.052437,95462.0,95457.0,0.052439]
[1734960890866,0.18424383,95470.0,95464.0,0.052436]
[1734960891170,0.18424383,95470.0,95452.0,0.34024]
[1734960891364,0.18424383,95470.0,95468.0,0.052433]
[1734960891567,0.3608,95476.0,95469.0,0.1814]
[1734960891761,0.3608,95494.0,95485.0,0.052424]
[1734960891762,0.052422,95490.0,95485.0,0.052424]
[1734960891960,0.3608,95494.0,95477.0,0.052428]
[1734960892266,0.052424,95485.0,95477.0,0.052428]
[1734960892463,0.3608,95494.0,95475.0,0.3608]
[1734960893056,0.01146219,95493.0,95480.0,0.08441739]
[1734960893261,0.00157148,95493.0,95480.0,0.08441739]
[1734960893461,0.00157148,95493.0,95488.0,0.052422]
[1734960893665,0.15366868,95485.0,95484.0,0.052425]
[1734960894567,0.16166868,95485.0,95481.0,0.152125]
[1734960894967,0.15366868,95485.0,95481.0,0.152125]
[1734960895172,0.005,95485.0,95481.0,0.152125]
[1734960895669,0.15366868,95490.0,95489.0,0.052422]
[1734960896670,0.15524016,95493.0,95490.0,0.052421]
[1734960898076,0.15524016,95493.0,95481.0,0.001]
[1734960898373,0.052425,95483.0,95478.0,0.052428]
[1734960899279,0.15924016,95493.0,95475.0,0.3608]
[1734960899573,0.003,95483.0,95480.0,0.01141739]
[1734960899877,0.003,95483.0,95475.0,0.3608]
[1734960901171,0.008,95483.0,95481.0,0.052426]
[1734960901366,0.060425,95483.0,95481.0,0.052426]
[1734960901670,0.15366868,95490.0,95488.0,0.052422]
[1734960903675,0.15366868,95490.0,95480.0,0.08441739]
[1734960903871,0.15366868,95490.0,95482.0,0.052423]
[1734960904179,0.15366868,95490.0,95484.0,0.052422]
[1734960904474,0.15766868,95490.0,95486.0,0.052421]
[1734960904667,0.15766868,95490.0,95475.0,0.340221]
[1734960904869,0.15366868,95492.0,95489.0,0.052419]
[1734960905065,0.21571826,95511.0,95491.0,0.3608]
[1734960905271,0.21571826,95511.0,95510.0,0.052408]
[1734960905566,0.21571826,95511.0,95503.0,0.052412]
[1734960905762,0.21571826,95511.0,95501.0,0.08505739]
[1734960905967,0.41321,95507.0,95492.0,0.5505]
[1734960906163,0.3608,95507.0,95497.0,0.08441739]
[1734960906471,0.3608,95507.0,95505.0,0.05241]
[1734960908378,0.01010234,95512.0,95511.0,0.052407]
[1734960908579,0.052404,95517.0,95511.0,0.052407]
[1734960908778,0.052404,95517.0,95513.0,0.052406]
[1734960909180,0.00983346,95517.0,95516.0,0.052404]
[1734960909478,0.1924,95527.0,95512.0,0.3608]
[1734960909678,0.3608,95530.0,95517.0,0.08441739]
[1734960909875,0.37090433,95530.0,95528.0,0.052398]
[1734960910076,0.01010433,95530.0,95528.0,0.052398]
[1734960910376,0.413193,95538.0,95522.0,0.300457]
[1734960910673,0.36168001,95538.0,95533.0,0.052395]
[1734960910877,0.00997931,95535.0,95533.0,0.052395]
[1734960911068,0.3608,95538.0,95537.0,0.052393]
[1734960911772,0.21571826,95556.0,95555.0,0.052383]
[1734960912879,0.18408666,95565.0,95564.0,0.052378]
[1734960914079,0.16578004,95565.0,95564.0,0.052378]
[1734960914273,0.3608,95572.0,95566.0,0.052377]
[1734960914587,0.3608,95572.0,95555.0,0.10868621]
[1734960915192,0.3608,95572.0,95339.0,0.01092843]
[1734960915193,0.7216,95563.0,95531.0,0.3608]
[1734960915479,0.052389,95545.0,95536.0,0.052393]
[1734960915776,0.3608,95552.0,95542.0,0.05239]
[1734960915981,0.37065549,95552.0,95542.0,0.05239]
[1734960916480,0.37065549,95552.0,95541.0,0.05396104]
[1734960916678,0.37065549,95552.0,95543.0,0.05239]
[1734960917173,0.37065549,95552.0,95541.0,0.00157004]
[1734960917174,0.37065549,95552.0,95545.0,0.052387]
[1734960917374,0.37065549,95552.0,95541.0,0.00157004]
[1734960917567,0.37065549,95552.0,95542.0,0.3608]
[1734960917780,0.37065549,95552.0,95541.0,0.00157004]
[1734960917781,0.4969647,95552.0,95541.0,0.00157004]
[1734960918081,0.3608,95542.0,95541.0,0.00157004]
[1734960919177,0.3775355,95552.0,95548.0,0.052386]
[1734960919379,0.37665549,95552.0,95541.0,0.00157004]
[1734960919571,0.37665549,95552.0,95546.0,0.052389]
[1734960920075,0.00985549,95552.0,95541.0,0.00157004]
[1734960920375,0.052388,95549.0,95541.0,0.00157004]
[1734960920581,0.052388,95549.0,95541.0,0.05396204]
[1734960922173,0.006,95549.0,95541.0,0.05396204]
[1734960922377,0.052388,95548.0,95541.0,0.05396204]
[1734960923171,0.3608,95543.0,95541.0,0.05396204]
[1734960923774,0.41319,95545.0,95541.0,0.00157004]
[1734960923980,0.052391,95542.0,95541.0,0.00157004]
[1734960924181,0.052402,95523.0,95513.0,0.052407]
[1734960924482,0.3608,95527.0,95503.0,0.3608]
[1734960924780,0.3608,95527.0,95522.0,0.052402]
[1734960925689,0.3658,95527.0,95522.0,0.052402]
[1734960926376,0.005,95527.0,95522.0,0.052402]
[1734960926581,0.005,95527.0,95526.0,0.0524]
[1734960927086,0.14421625,95537.0,95510.0,0.12630921]
[1734960927087,0.052394,95537.0,95510.0,0.12630921]
[1734960927386,0.052394,95537.0,95530.0,0.052398]
[1734960927587,0.052394,95537.0,95532.0,0.052396]
[1734960927781,0.052394,95537.0,95520.0,0.12630921]
[1734960927782,0.09182225,95538.0,95537.0,0.052394]
[1734960928286,0.09182225,95541.0,95537.0,0.052394]
[1734960928679,0.09182225,95541.0,95523.0,0.3696]
[1734960928680,0.052394,95538.0,95530.0,0.052398]
[1734960928881,0.052394,95538.0,95523.0,0.3696]
[1734960928882,0.052394,95537.0,95523.0,0.3696]
[1734960929283,0.052394,95537.0,95532.0,0.052397]
[1734960930299,0.052396,95533.0,95524.0,0.052401]
[1734960930585,0.052396,95533.0,95523.0,0.3696]
[1734960930780,0.052396,95533.0,95527.0,0.052399]
[1734960931187,0.052396,95533.0,95523.0,0.3696]
[1734960931391,0.052396,95533.0,95529.0,0.052398]
[1734960931590,0.052396,95533.0,95530.0,0.052398]
[1734960931791,0.052393,95539.0,95523.0,0.3696]
[1734960931991,0.052393,95539.0,95532.0,0.052397]
[1734960932491,0.09182225,95537.0,95532.0,0.052397]
[1734960933592,0.09182225,95537.0,95523.0,0.3696]
[1734960933895,0.052396,95535.0,95527.0,0.052399]
[1734960934289,0.052396,95535.0,95532.0,0.052397]
[1734960934484,0.052396,95535.0,95523.0,0.348997]
[1734960934678,0.09182225,95536.0,95523.0,0.348997]
[1734960934885,0.09182225,95532.0,95531.0,0.052397]
[1734960936396,0.12241208,95536.0,95533.0,0.052396]
[1734960936790,0.12241208,95536.0,95534.0,0.052396]
[1734960937492,0.052407,95514.0,95513.0,0.3608]
[1734960937895,0.052404,95519.0,95515.0,0.052406]
[1734960938090,0.052405,95517.0,95515.0,0.052406]
[1734960938892,0.052405,95518.0,95512.0,0.052408]
[1734960939193,0.052405,95518.0,95515.0,0.052406]
[1734960939398,0.12241208,95516.0,95515.0,0.052406]
[1734960940196,0.052407,95514.0,95511.0,0.052408]
[1734960940586,0.413207,95514.0,95511.0,0.052408]
[1734960941695,0.417207,95514.0,95511.0,0.052408]
[1734960941897,0.3648,95514.0,95506.0,0.1829]
[1734960942096,0.3648,95514.0,95500.0,0.44967033]
[1734960942097,0.05241,95508.0,95500.0,0.0006]
[1734960942393,0.05241,95508.0,95494.0,0.052418]
[1734960942798,0.052419,95491.0,95490.0,0.18737585]
[1734960943894,0.053419,95491.0,95490.0,0.18737585]
[1734960944095,0.053419,95491.0,95488.0,0.052421]
[1734960945302,0.17630662,95491.0,95488.0,0.052421]
[1734960945800,0.12388762,95491.0,95490.0,0.41322]
[1734960946594,0.001,95491.0,95490.0,0.41322]
[1734960947293,0.09212737,95497.0,95496.0,0.052417]
[1734960948092,0.09212737,95497.0,95490.0,0.3608]
[1734960948093,0.052414,95502.0,95498.0,0.052416]
[1734960948293,0.052415,95499.0,95498.0,0.052416]
[1734960948798,0.15483855,95505.0,95501.0,0.052414]
[1734960948991,0.10242655,95505.0,95490.0,0.3608]
[1734960949193,0.10242655,95505.0,95501.0,0.052414]
[1734960949394,0.052413,95502.0,95501.0,0.052414]
[1734960952403,0.09212737,95503.0,95501.0,0.052414]
[1734960952404,0.10242655,95505.0,95501.0,0.052414]
[1734960952603,0.09212737,95505.0,95501.0,0.052414]
[1734960953490,0.09212737,95504.0,95501.0,0.052414]
[1734960954505,0.09212737,95504.0,95484.0,0.1835]
[1734960954506,0.09212737,95504.0,95503.0,0.052413]
[1734960954692,0.12288762,95507.0,95504.0,0.052412]
[1734960955506,0.17529862,95507.0,95504.0,0.052412]
[1734960955999,0.12288762,95507.0,95504.0,0.052412]
[1734960956201,0.12288762,95507.0,95496.0,0.052416]
[1734960956500,0.3608,95497.0,95473.0,0.18737585]
[1734960956702,0.3608,95484.0,95473.0,0.18737585]
[1734960956896,0.08427033,95483.0,95473.0,0.18737585]
[1734960957098,0.052429,95475.0,95473.0,0.18737585]
[1734960957513,0.052429,95475.0,95468.0,0.24373028]
[1734960957703,0.3608,95470.0,95461.0,0.31144911]
[1734960957902,0.413235,95462.0,95461.0,0.31144911]
[1734960958108,0.413235,95462.0,95454.0,0.37429893]
[1734960958109,0.052439,95456.0,95454.0,0.00056]
[1734960958312,0.052439,95455.0,95446.0,0.052444]
[1734960958499,0.052439,95455.0,95444.0,0.3608]
[1734960958804,0.052439,95455.0,95447.0,0.052444]
[1734960959611,0.05244,95454.0,95447.0,0.052444]
[1734960959796,0.05244,95454.0,95450.0,0.052442]
[1734960959992,0.05244,95454.0,95445.0,0.052445]
[1734960960811,0.05244,95454.0,95448.0,0.052443]
[1734960961404,0.05244,95454.0,95444.0,0.3608]
[1734960961703,0.05244,95453.0,95441.0,0.00157151]
[1734960961910,0.003,95454.0,95446.0,0.052444]
[1734960962109,0.052442,95450.0,95446.0,0.052444]
[1734960962503,0.3628,95454.0,95441.0,0.00157151]
[1734960963011,0.3628,95454.0,95419.0,0.36136]
[1734960963012,0.3608,95445.0,95419.0,0.36136]
[1734960963207,0.052455,95426.0,95419.0,0.413259]
[1734960963420,0.052457,95424.0,95419.0,0.00056]
[1734960963707,0.052467,95405.0,95400.0,0.1]
[1734960964009,0.413264,95411.0,95400.0,0.1]
[1734960964208,0.3608,95411.0,95400.0,0.1]
[1734960964615,0.08427033,95420.0,95400.0,0.1]
[1734960965317,0.052466,95407.0,95400.0,0.1]
[1734960965707,0.3608,95402.0,95400.0,0.1]
[1734960966205,0.052465,95409.0,95400.0,0.1]
[1734960966405,0.08427033,95410.0,95400.0,0.1]
[1734960966611,0.052468,95404.0,95400.0,0.1]
[1734960967412,0.052468,95402.0,95400.0,0.1]
[1734960969109,0.3608,95404.0,95386.0,0.052477]
[1734960969310,0.05247,95398.0,95386.0,0.052477]
[1734960969710,0.052475,95391.0,95385.0,0.3608]
[1734960969914,0.3608,95386.0,95378.0,0.1994]
[1734960970213,0.3608,95386.0,95377.0,0.3608]
[1734960970610,0.3608,95386.0,95369.0,0.3608]
[1734960970806,0.05248,95380.0,95367.0,0.3608]
[1734960971107,0.05248,95380.0,95367.0,0.413287]
[1734960971305,0.05248,95380.0,95367.0,0.413847]
[1734960971506,0.18206001,95385.0,95367.0,0.3608]
[1734960971701,0.1811,95385.0,95374.0,0.052483]
[1734960971913,0.3608,95377.0,95374.0,0.052483]
[1734960973011,0.00988851,95385.0,95367.0,0.3608]
[1734960973313,0.3608,95386.0,95384.0,0.052478]
[1734960975104,0.3608,95386.0,95385.0,0.052478]
[1734960975308,0.00998591,95389.0,95386.0,0.052476]
[1734960975512,0.052473,95394.0,95386.0,0.052476]
[1734960975909,0.052475,95390.0,95379.0,0.05248]
[1734960976106,0.005,95386.0,95379.0,0.05248]
[1734960976310,0.005,95386.0,95370.0,0.052486]
[1734960976509,0.052482,95377.0,95368.0,0.3608]
[1734960976705,0.3608,95375.0,95368.0,0.3608]
[1734960976906,0.052498,95347.0,95346.0,0.00056]
[1734960977114,0.3608,95347.0,95297.0,0.3608]
[1734960977415,0.052515,95318.0,95297.0,0.3608]
[1734960977616,0.3608,95327.0,95305.0,0.052522]
[1734960977617,0.3608,95311.0,95305.0,0.052522]
[1734960978311,0.3608,95311.0,95297.0,0.3608]
[1734960978506,0.05252,95310.0,95291.0,0.05253]
[1734960978714,0.05252,95310.0,95277.0,0.3608]
[1734960978715,0.3608,95302.0,95300.0,0.152525]
[1734960978919,0.3608,95329.0,95300.0,0.4608]
[1734960979219,0.3608,95329.0,95327.0,0.05251]
[1734960980317,0.3608,95329.0,95318.0,0.052515]
[1734960980506,0.3608,95319.0,95318.0,0.052515]
[1734960980710,0.05251,95328.0,95318.0,0.052515]
[1734960981425,0.3608,95320.0,95310.0,0.052519]
[1734960981623,0.3608,95311.0,95310.0,0.052519]
[1734960981922,0.3608,95311.0,95300.0,0.1]
[1734960982124,0.17935402,95310.0,95300.0,0.1]
[1734960982321,0.052521,95308.0,95300.0,0.1]
[1734960983021,0.052525,95301.0,95300.0,0.1]
[1734960983616,0.3608,95302.0,95300.0,0.1]
[1734960984319,0.052525,95301.0,95300.0,0.1]
[1734960984522,0.3608,95302.0,95300.0,0.1]
[1734960984718,0.3608,95302.0,95300.0,0.027]
[1734960985523,0.052525,95301.0,95300.0,0.027]
[1734960985940,0.052527,95297.0,95288.0,0.052532]
[1734960986110,0.3608,95291.0,95288.0,0.052532]
[1734960986313,0.052532,95287.0,95276.0,0.3608]
[1734960986517,0.3608,95279.0,95265.0,0.3608]
[1734960986716,0.052539,95275.0,95265.0,0.3608]
[1734960986917,0.3608,95279.0,95272.0,0.05254]
[1734960987124,0.3608,95279.0,95265.0,0.3608]
[1734960987323,0.3608,95279.0,95277.0,0.052538]
[1734960988026,0.3608,95279.0,95269.0,0.052542]
[1734960988222,0.3608,95279.0,95276.0,0.052538]
[1734960988429,0.36184001,95291.0,95278.0,0.052537]
[1734960988626,0.36184001,95291.0,95286.0,0.052533]
[1734960988627,0.3608,95291.0,95286.0,0.052533]
[1734960989515,0.3608,95291.0,95277.0,0.3608]
[1734960989516,0.052535,95283.0,95277.0,0.052537]
[1734960989714,0.3608,95291.0,95261.0,0.1853]
[1734960989715,0.052536,95282.0,95261.0,0.1853]
[1734960989912,0.3608,95291.0,95261.0,0.1853]
[1734960990116,0.3608,95291.0,95278.0,0.052537]
[1734960990318,0.052532,95289.0,95278.0,0.052537]
[1734960990514,0.052533,95286.0,95278.0,0.052537]
[1734960991329,0.002,95291.0,95290.0,0.052531]
[1734960991534,0.002,95291.0,95262.0,0.052546]
[1734960991535,0.6628,95291.0,95267.0,0.052543]
[1734960991824,0.052541,95272.0,95267.0,0.052543]
[1734960992532,0.052536,95281.0,95273.0,0.05254]
[1734960992725,0.052537,95280.0,95273.0,0.05254]
[1734960992924,0.052537,95279.0,95265.0,0.052544]
[1734960993121,0.3608,95275.0,95260.0,0.36144]
[1734960993324,0.052546,95264.0,95260.0,0.3608]
[1734960993520,0.3608,95266.0,95250.0,0.052552]
[1734960993717,0.3608,95258.0,95250.0,0.052552]
[1734960993922,0.413349,95258.0,95250.0,0.052552]
[1734960994527,0.052549,95257.0,95249.0,0.3608]
[1734960994725,0.052549,95257.0,95249.0,0.3468]
[1734960995231,0.05255,95256.0,95249.0,0.3468]
[1734960996235,0.05255,95256.0,95249.0,0.052553]
[1734960996437,0.3608,95258.0,95254.0,0.05255]
[1734960996930,0.3608,95266.0,95260.0,0.052547]
[1734960997325,0.052542,95269.0,95260.0,0.052547]
[1734960997526,0.3608,95270.0,95257.0,0.3608]
[1734960997835,0.052538,95277.0,95265.0,0.3608]
[1734960998032,0.36237518,95278.0,95265.0,0.3608]
[1734960998226,0.052552,95252.0,95247.0,0.01315053]
[1734960998923,0.052553,95251.0,95247.0,0.01315053]
[1734960999723,0.052554,95248.0,95247.0,0.01315053]
[1734961001832,0.413354,95248.0,95247.0,0.01315053]
[1734961002129,0.413354,95248.0,95219.0,0.1882]
[1734961002130,0.052562,95233.0,95221.0,0.052568]
[1734961002433,0.413362,95233.0,95223.0,0.052567]
[1734961003241,0.3608,95233.0,95220.0,0.12683402]
[1734961003433,0.052559,95240.0,95220.0,0.12683402]
[1734961003628,0.052559,95240.0,95228.0,0.052565]
[1734961003829,0.052566,95227.0,95216.0,0.052571]
[1734961004030,0.052566,95227.0,95219.0,0.05257]
[1734961004941,0.052567,95224.0,95212.0,0.052573]
[1734961005245,0.052571,95217.0,95206.0,0.052577]
[1734961005438,0.052571,95217.0,95207.0,0.052576]
[1734961005639,0.3608,95226.0,95200.0,0.41323402]
[1734961005842,0.05257,95219.0,95211.0,0.052574]
[1734961006433,0.3608,95217.0,95212.0,0.052573]
[1734961006739,0.3608,95217.0,95207.0,0.3608]
[1734961006930,0.3608,95217.0,95213.0,0.052572]
[1734961007131,0.3608,95217.0,95207.0,0.3608]
[1734961007738,0.052574,95211.0,95207.0,0.3608]
[1734961007938,0.052575,95210.0,95207.0,0.3608]
[1734961008938,0.052572,95215.0,95209.0,0.052575]
[1734961009139,0.01160735,95217.0,95215.0,0.052571]
[1734961009442,0.01052734,95217.0,95215.0,0.052571]
[1734961009746,0.01052734,95217.0,95208.0,0.2012]
[1734961009747,0.052568,95221.0,95208.0,0.2012]
[1734961010133,0.052568,95221.0,95218.0,0.05257]
[1734961010328,0.052569,95220.0,95218.0,0.05257]
[1734961011341,0.37196214,95227.0,95208.0,0.2012]
[1734961011636,0.12683402,95220.0,95208.0,0.2012]
[1734961011835,0.052568,95222.0,95208.0,0.2012]
[1734961012034,0.37196214,95227.0,95215.0,0.052571]
[1734961012229,0.37092213,95227.0,95211.0,0.052573]
[1734961012434,0.052572,95215.0,95211.0,0.052573]
[1734961013036,0.052572,95215.0,95213.0,0.052572]
[1734961013740,0.052573,95213.0,95208.0,0.253775]
[1734961013942,0.052573,95213.0,95209.0,0.052574]
[1734961014134,0.052573,95213.0,95208.0,0.2012]
[1734961014335,0.052574,95210.0,95208.0,0.2012]
[1734961014536,0.3608,95217.0,95200.0,0.1]
[1734961014537,0.3608,95209.0,95200.0,0.1]
[1734961014739,0.052579,95201.0,95200.0,0.1]
[1734961015242,0.413379,95201.0,95200.0,0.1]
[1734961015440,0.413379,95201.0,95182.0,0.1988]
[1734961015441,0.3608,95201.0,95182.0,0.1988]
[1734961015635,0.052589,95183.0,95182.0,0.1988]
[1734961015837,0.052588,95186.0,95182.0,0.1982]
[1734961016039,0.3608,95190.0,95182.0,0.1982]
[1734961016239,0.05258,95200.0,95182.0,0.1982]
[1734961016442,0.3722933,95201.0,95184.0,0.3608]
[1734961016632,0.052581,95199.0,95188.0,0.052586]
[1734961016841,0.052581,95199.0,95190.0,0.052585]
[1734961017042,0.12683402,95200.0,95184.0,0.3608]
[1734961017438,0.12683402,95200.0,95184.0,0.413388]
[1734961017439,0.052584,95192.0,95184.0,0.413388]
[1734961017839,0.052584,95192.0,95184.0,0.052588]
[1734961019449,0.052584,95192.0,95180.0,0.3608]
[1734961019450,0.09208761,95196.0,95188.0,0.052586]
[1734961019842,0.09208761,95196.0,95180.0,0.3608]
[1734961020048,0.052584,95193.0,95182.0,0.052589]
[1734961020255,0.052584,95193.0,95182.0,0.3608]
[1734961020444,0.052584,95192.0,95184.0,0.052588]
[1734961020650,0.09208761,95196.0,95182.0,0.3608]
[1734961020852,0.3608,95190.0,95178.0,0.052592]
[1734961021451,0.052589,95184.0,95178.0,0.052592]
[1734961021649,0.3608,95190.0,95182.0,0.052589]
[1734961022753,0.3608,95190.0,95171.0,0.3608]
[1734961022754,0.05259,95182.0,95175.0,0.052593]
[1734961022938,0.05259,95182.0,95176.0,0.052593]
[1734961023144,0.01153271,95189.0,95176.0,0.052593]
[1734961023457,0.052586,95189.0,95182.0,0.00119638]
[1734961023639,0.052588,95186.0,95182.0,0.00119638]
[1734961024045,0.052588,95186.0,95184.0,0.00156945]
[1734961024656,0.35885748,95185.0,95161.0,0.3608]
[1734961024860,0.3608,95172.0,95166.0,0.052598]
[1734961025754,0.3608,95172.0,95152.0,0.3608]
[1734961026063,0.3608,95164.0,95152.0,0.3608]
[1734961026245,0.052603,95158.0,95152.0,0.3608]
[1734961026442,0.3608,95154.0,95142.0,0.3608]
[1734961026754,0.052607,95151.0,95143.0,0.052611]
[1734961027053,0.3608,95154.0,95147.0,0.052609]
[1734961027253,0.3608,95154.0,95153.0,0.052605]
[1734961027855,0.3608,95164.0,95151.0,0.3608]
[1734961028347,0.12683402,95161.0,95151.0,0.3608]
[1734961028553,0.3608,95154.0,95144.0,0.3608]
[1734961028745,0.052609,95147.0,95144.0,0.3608]
[1734961028946,0.3608,95154.0,95144.0,0.3608]
[1734961029150,0.052606,95153.0,95145.0,0.05261]
[1734961029356,0.052606,95152.0,95145.0,0.05261]
[1734961029659,0.3608,95154.0,95144.0,0.3608]
[1734961029960,0.3608,95145.0,95132.0,0.3608]
[1734961030354,0.052613,95140.0,95132.0,0.3608]
[1734961030863,0.052613,95140.0,95134.0,0.052615]
[1734961031053,0.3608,95145.0,95132.0,0.3608]
[1734961031360,0.052615,95135.0,95132.0,0.3608]
[1734961031951,0.41341,95145.0,95134.0,0.052615]
[1734961032152,0.052616,95134.0,95132.0,0.3608]
[1734961032357,0.052614,95138.0,95132.0,0.3608]
[1734961032852,0.052614,95138.0,95133.0,0.052616]
[1734961033057,0.37226739,95145.0,95132.0,0.3608]
[1734961033257,0.37118738,95145.0,95132.0,0.3608]
[1734961033457,0.12683402,95142.0,95132.0,0.3608]
[1734961033761,0.052616,95134.0,95132.0,0.3608]
[1734961033956,0.37118738,95145.0,95132.0,0.3608]
[1734961034161,0.052612,95142.0,95132.0,0.3608]
[1734961034360,0.052612,95141.0,95135.0,0.052615]
[1734961035058,0.37230739,95145.0,95132.0,0.3608]
[1734961035279,0.09208761,95148.0,95147.0,0.052608]
[1734961035456,0.09208761,95148.0,95147.0,0.413408]
[1734961035651,0.12288762,95157.0,95147.0,0.413408]
[1734961035855,0.12288762,95157.0,95145.0,0.3677]
[1734961035856,0.01047179,95157.0,95156.0,0.3608]
[1734961036059,0.12288762,95159.0,95156.0,0.3608]
[1734961036261,0.12288762,95159.0,95157.0,0.052603]
[1734961036664,0.13311749,95159.0,95157.0,0.052603]
[1734961037058,0.12288762,95159.0,95157.0,0.239803]
[1734961037565,0.00157698,95171.0,95170.0,0.052596]
[1734961038363,0.12288762,95189.0,95188.0,0.052586]
[1734961038767,0.01044852,95190.0,95188.0,0.052586]
[1734961038956,0.12288762,95192.0,95184.0,0.3608]
[1734961039158,0.12288762,95192.0,95191.0,0.052584]
[1734961040154,0.052573,95212.0,95191.0,0.052584]
[1734961040355,0.01183123,95209.0,95207.0,0.052575]
[1734961041857,0.00157618,95209.0,95207.0,0.052575]
[1734961043067,0.3608,95237.0,95223.0,0.052564]
[1734961043068,0.01025813,95225.0,95223.0,0.052564]
[1734961043272,0.12288762,95229.0,95224.0,0.3608]
[1734961043469,0.12288762,95229.0,95225.0,0.052563]
[1734961043767,0.12288762,95229.0,95227.0,0.052562]
[1734961045075,0.0102844,95237.0,95223.0,0.3608]
[1734961045274,0.12288762,95245.0,95238.0,0.052556]
[1734961045569,0.13319979,95245.0,95234.0,0.3608]
[1734961045776,0.13319979,95245.0,95244.0,0.052553]
[1734961046070,0.052558,95236.0,95234.0,0.3608]
[1734961046271,0.3608,95238.0,95216.0,0.00064]
[1734961046474,0.3608,95223.0,95204.0,0.052574]
[1734961046672,0.3608,95205.0,95196.0,0.2034]
[1734961047180,0.3608,95205.0,95199.0,0.052577]
[1734961047663,0.3608,95214.0,95196.0,0.2034]
[1734961047865,0.3608,95214.0,95204.0,0.052575]
[1734961048070,0.3608,95214.0,95207.0,0.052573]
[1734961048269,0.3608,95214.0,95200.0,0.12683402]
[1734961048470,0.3608,95214.0,95190.0,0.12683402]
[1734961048675,0.052575,95205.0,95193.0,0.052581]
[1734961049171,0.052575,95205.0,95194.0,0.05258]
[1734961049471,0.052571,95211.0,95200.0,0.052577]
[1734961049671,0.052573,95208.0,95200.0,0.052577]
[1734961050288,0.3608,95214.0,95205.0,0.052574]
[1734961050466,0.3710556,95214.0,95200.0,0.052577]
[1734961050665,0.3710556,95214.0,95210.0,0.052571]
[1734961051166,0.3710556,95214.0,95212.0,0.05257]
[1734961051167,0.0102556,95214.0,95212.0,0.05257]
[1734961051361,0.3608,95226.0,95204.0,0.3608]
[1734961051566,0.3608,95226.0,95216.0,0.052568]
[1734961051773,0.3608,95226.0,95205.0,0.1844]
[1734961051974,0.3608,95226.0,95219.0,0.052566]
[1734961052270,0.37121874,95226.0,95205.0,0.1844]
[1734961052973,0.052566,95220.0,95205.0,0.1844]
[1734961053165,0.37225875,95226.0,95218.0,0.052567]
[1734961053367,0.42378174,95226.0,95222.0,0.00114602]
[1734961053583,0.052564,95225.0,95222.0,0.00114602]